[Event "Titled Tuesday Blitz July 11 Late 2023"]
[White "Richter, Paul"]
[Black "Khouri, Ahmed Abbas"]
[WhiteFideId "2046350"]
[BlackFideId "9301518"]
[WhiteElo "2535"]
[BlackElo "2137"]
[Result "1-0"]
[Round "1"]
[TimeControl "180+2"]
[Date "2023.07.11"]
[WhiteClock "0:00:24"]
[BlackClock "0:00:10"]
[Board "174"]

1. e4 {[%clk 0:02:59]}  d5 {[%clk 0:02:59]} 2. exd5 {[%clk 0:03:00]}  Qxd5 {[%clk 0:03:00]} 3. Nc3 {[%clk 0:02:59]}  Qd6 {[%clk 0:03:01]} 4. Bc4 {[%clk 0:02:59]}  Nf6 {[%clk 0:03:02]} 5. Nge2 {[%clk 0:02:59]}  c6 {[%clk 0:03:02]} 6. d4 {[%clk 0:02:59]}  Bg4 {[%clk 0:03:03]} 7. Bf4 {[%clk 0:02:58]}  Qd8 {[%clk 0:03:03]} 8. Qd2 {[%clk 0:02:56]}  e6 {[%clk 0:03:03]} 9. O-O-O {[%clk 0:02:45]}  Be7 {[%clk 0:03:00]} 10. Be3 {[%clk 0:02:34]}  b5 {[%clk 0:02:53]} 11. Bb3 {[%clk 0:02:33]}  Nbd7 {[%clk 0:02:45]} 12. f3 {[%clk 0:02:33]}  Bh5 {[%clk 0:02:42]} 13. g4 {[%clk 0:02:32]}  Bg6 {[%clk 0:02:42]} 14. h4 {[%clk 0:02:33]}  a5 {[%clk 0:02:37]} 15. a4 {[%clk 0:02:21]}  b4 {[%clk 0:01:42]} 16. Nb1 {[%clk 0:02:19]}  h6 {[%clk 0:01:06]} 17. Nf4 {[%clk 0:02:07]}  Bh7 {[%clk 0:01:06]} 18. g5 {[%clk 0:02:05]}  Nd5 {[%clk 0:01:03]} 19. g6 {[%clk 0:02:03]}  Bxg6 {[%clk 0:01:02]} 20. Nxg6 {[%clk 0:02:01]}  fxg6 {[%clk 0:01:03]} 21. Qd3 {[%clk 0:01:55]}  O-O {[%clk 0:00:43]} 22. Rhg1 {[%clk 0:01:36]}  Rxf3 {[%clk 0:00:30]} 23. Qxg6 {[%clk 0:01:33]}  Bf6 {[%clk 0:00:25]} 24. Bxh6 {[%clk 0:01:26]}  Qf8 {[%clk 0:00:21]} 25. Qg4 {[%clk 0:01:19]}  Rf2 {[%clk 0:00:20]} 26. Nd2 {[%clk 0:01:08]}  Kh8 {[%clk 0:00:19]} 27. Ne4 {[%clk 0:01:07]}  gxh6 {[%clk 0:00:17]} 28. Nxf2 {[%clk 0:01:04]}  Qf7 {[%clk 0:00:14]} 29. Ne4 {[%clk 0:01:02]}  Bg7 {[%clk 0:00:14]} 30. Rdf1 {[%clk 0:01:02]}  Qe7 {[%clk 0:00:14]} 31. Bxd5 {[%clk 0:00:37]}  cxd5 {[%clk 0:00:14]} 32. Ng3 {[%clk 0:00:28]}  b3 {[%clk 0:00:15]} 33. c3 {[%clk 0:00:26]}  Nf6 {[%clk 0:00:14]} 34. Qg6 {[%clk 0:00:25]}  Rc8 {[%clk 0:00:13]} 35. Nh5 {[%clk 0:00:23]}  Rxc3+ {[%clk 0:00:13]} 36. Kb1 {[%clk 0:00:24]}  Rc7 {[%clk 0:00:09]} 37. Nxf6 {[%clk 0:00:23]}  Qxf6 {[%clk 0:00:09]} 38. Qxf6 {[%clk 0:00:24]}  Bxf6 {[%clk 0:00:10]} 39. Rxf6 {[%clk 0:00:24]}  Rc4 {[%clk 0:00:10]} 40. Rxh6# {[%clk 0:00:24]} 1-0


[Site "https://www.chess.com"]

[Event "Titled Tuesday Blitz July 11 Late 2023"]
[White "MFatigue"]
[Black "Hartikainen, Jarmo"]
[BlackFideId "503134"]
[WhiteElo "2532"]
[BlackElo "2114"]
[Result "1-0"]
[Round "1"]
[TimeControl "180+2"]
[Date "2023.07.11"]
[WhiteClock "0:00:18"]
[BlackClock "0:00:00"]
[Board "178"]

1. e4 {[%clk 0:03:00]}  c5 {[%clk 0:02:59]} 2. a3 {[%clk 0:03:00]}  g6 {[%clk 0:02:57]} 3. h4 {[%clk 0:03:00]}  Nf6 {[%clk 0:02:44]} 4. Nc3 {[%clk 0:03:00]}  Nc6 {[%clk 0:02:43]} 5. Bc4 {[%clk 0:02:56]}  e6 {[%clk 0:02:37]} 6. d3 {[%clk 0:02:55]}  d5 {[%clk 0:02:37]} 7. Bb5 {[%clk 0:02:49]}  h6 {[%clk 0:02:32]} 8. Bf4 {[%clk 0:02:36]}  Bg7 {[%clk 0:02:21]} 9. Nf3 {[%clk 0:02:33]}  d4 {[%clk 0:02:12]} 10. Bxc6+ {[%clk 0:02:32]}  bxc6 {[%clk 0:02:11]} 11. Ne2 {[%clk 0:02:33]}  Nd7 {[%clk 0:02:06]} 12. O-O {[%clk 0:02:31]}  e5 {[%clk 0:02:06]} 13. Bg3 {[%clk 0:02:30]}  O-O {[%clk 0:02:04]} 14. Qd2 {[%clk 0:02:28]}  Re8 {[%clk 0:01:48]} 15. Nh2 {[%clk 0:02:05]}  Rb8 {[%clk 0:01:32]} 16. b4 {[%clk 0:02:04]}  Qe7 {[%clk 0:01:29]} 17. Rfb1 {[%clk 0:02:02]}  Ba6 {[%clk 0:00:57]} 18. Nf1 {[%clk 0:01:47]}  c4 {[%clk 0:00:52]} 19. dxc4 {[%clk 0:01:37]}  Bxc4 {[%clk 0:00:51]} 20. Nc1 {[%clk 0:01:38]}  Kh7 {[%clk 0:00:42]} 21. Nd3 {[%clk 0:01:37]}  Bxd3 {[%clk 0:00:39]} 22. cxd3 {[%clk 0:01:33]}  a6 {[%clk 0:00:35]} 23. Qc2 {[%clk 0:01:28]}  c5 {[%clk 0:00:35]} 24. Qc4 {[%clk 0:01:24]}  Qe6 {[%clk 0:00:27]} 25. Qxe6 {[%clk 0:01:20]}  Rxe6 {[%clk 0:00:28]} 26. Nd2 {[%clk 0:01:19]}  cxb4 {[%clk 0:00:25]} 27. Rxb4 {[%clk 0:01:18]}  Rxb4 {[%clk 0:00:24]} 28. axb4 {[%clk 0:01:19]}  Rb6 {[%clk 0:00:25]} 29. Ra4 {[%clk 0:01:16]}  Bf8 {[%clk 0:00:18]} 30. Nc4 {[%clk 0:01:16]}  Rxb4 {[%clk 0:00:15]} 31. Rxa6 {[%clk 0:00:59]}  Rb1+ {[%clk 0:00:12]} 32. Kh2 {[%clk 0:00:59]}  Nc5 {[%clk 0:00:12]} 33. Nxe5 {[%clk 0:00:57]}  Nxa6 {[%clk 0:00:11]} 34. Nxf7 {[%clk 0:00:57]}  Bg7 {[%clk 0:00:10]} 35. e5 {[%clk 0:00:56]}  Nc5 {[%clk 0:00:10]} 36. Nd6 {[%clk 0:00:55]}  Ne6 {[%clk 0:00:10]} 37. f4 {[%clk 0:00:41]}  Rd1 {[%clk 0:00:10]} 38. h5 {[%clk 0:00:36]}  Rxd3 {[%clk 0:00:09]} 39. hxg6+ {[%clk 0:00:36]}  Kg8 {[%clk 0:00:08]} 40. f5 {[%clk 0:00:37]}  Ng5 {[%clk 0:00:07]} 41. f6 {[%clk 0:00:32]}  Rxg3 {[%clk 0:00:05]} 42. Kxg3 {[%clk 0:00:29]}  d3 {[%clk 0:00:05]} 43. Kf2 {[%clk 0:00:27]}  Ne6 {[%clk 0:00:02]} 44. Ke3 {[%clk 0:00:21]}  Nc5 {[%clk 0:00:00]} 45. g4 {[%clk 0:00:18]} 1-0


[Site "https://www.chess.com"]

[Event "Titled Tuesday Blitz July 11 Late 2023"]
[White "cycygogne"]
[Black "Mattheii"]
[WhiteElo "2113"]
[BlackElo "2532"]
[Result "1-0"]
[Round "1"]
[TimeControl "180+2"]
[Date "2023.07.11"]
[WhiteClock "0:01:21"]
[BlackClock "0:00:34"]
[Board "179"]

1. e4 {[%clk 0:02:54]}  c5 {[%clk 0:02:59]} 2. Nf3 {[%clk 0:02:54]}  Nc6 {[%clk 0:02:59]} 3. b4 {[%clk 0:02:52]}  cxb4 {[%clk 0:02:57]} 4. d4 {[%clk 0:02:52]}  d5 {[%clk 0:02:55]} 5. exd5 {[%clk 0:02:53]}  Qxd5 {[%clk 0:02:56]} 6. c4 {[%clk 0:02:53]}  bxc3 {[%clk 0:02:57]} 7. Nxc3 {[%clk 0:02:54]}  Qa5 {[%clk 0:02:57]} 8. Bd2 {[%clk 0:02:53]}  e6 {[%clk 0:02:46]} 9. d5 {[%clk 0:02:53]}  exd5 {[%clk 0:02:34]} 10. Nb5 {[%clk 0:02:48]}  Qd8 {[%clk 0:02:26]} 11. Bf4 {[%clk 0:02:43]}  Bb4+ {[%clk 0:02:24]} 12. Nd2 {[%clk 0:02:38]}  Qe7+ {[%clk 0:02:08]} 13. Be2 {[%clk 0:02:38]}  Ne5 {[%clk 0:01:38]} 14. O-O {[%clk 0:02:22]}  a6 {[%clk 0:01:37]} 15. Qa4 {[%clk 0:02:11]}  Bd7 {[%clk 0:01:30]} 16. Bxe5 {[%clk 0:01:33]}  Qxe5 {[%clk 0:01:28]} 17. Qxb4 {[%clk 0:01:33]}  axb5 {[%clk 0:01:14]} 18. Bxb5 {[%clk 0:01:31]}  Qc7 {[%clk 0:00:44]} 19. Rfe1+ {[%clk 0:01:22]}  Kd8 {[%clk 0:00:34]} 20. Qf8+ {[%clk 0:01:21]} 1-0


[Site "https://www.chess.com"]

[Event "Titled Tuesday Blitz July 11 Late 2023"]
[White "Semenova, Alina"]
[Black "brm72"]
[WhiteFideId "24113875"]
[WhiteElo "2059"]
[BlackElo "2529"]
[Result "0-1"]
[Round "1"]
[TimeControl "180+2"]
[Date "2023.07.11"]
[WhiteClock "0:00:00"]
[BlackClock "0:01:26"]
[Board "183"]

1. e4 {[%clk 0:02:25]}  c6 {[%clk 0:02:56]} 2. d4 {[%clk 0:02:25]}  d5 {[%clk 0:02:57]} 3. e5 {[%clk 0:02:22]}  c5 {[%clk 0:02:57]} 4. dxc5 {[%clk 0:02:20]}  e6 {[%clk 0:02:56]} 5. Nc3 {[%clk 0:02:16]}  Bxc5 {[%clk 0:02:54]} 6. Nf3 {[%clk 0:02:09]}  Nc6 {[%clk 0:02:46]} 7. a3 {[%clk 0:01:51]}  Nge7 {[%clk 0:02:43]} 8. Bd3 {[%clk 0:01:50]}  Ng6 {[%clk 0:02:42]} 9. Bxg6 {[%clk 0:01:36]}  hxg6 {[%clk 0:02:41]} 10. Bg5 {[%clk 0:01:35]}  Qb6 {[%clk 0:02:20]} 11. Na4 {[%clk 0:00:47]}  Bxf2+ {[%clk 0:02:17]} 12. Kf1 {[%clk 0:00:47]}  Qa6+ {[%clk 0:02:17]} 13. c4 {[%clk 0:00:46]}  Bb6 {[%clk 0:01:49]} 14. Nxb6 {[%clk 0:00:39]}  axb6 {[%clk 0:01:47]} 15. Kf2 {[%clk 0:00:33]}  Qxc4 {[%clk 0:01:46]} 16. Rc1 {[%clk 0:00:33]}  Qb5 {[%clk 0:01:43]} 17. Qd2 {[%clk 0:00:26]}  Bd7 {[%clk 0:01:40]} 18. Rc2 {[%clk 0:00:24]}  Ra4 {[%clk 0:01:40]} 19. Rhc1 {[%clk 0:00:22]}  O-O {[%clk 0:01:37]} 20. h4 {[%clk 0:00:19]}  f6 {[%clk 0:01:31]} 21. exf6 {[%clk 0:00:14]}  gxf6 {[%clk 0:01:32]} 22. Be3 {[%clk 0:00:08]}  e5 {[%clk 0:01:31]} 23. Kg1 {[%clk 0:00:05]}  d4 {[%clk 0:01:31]} 24. Bf2 {[%clk 0:00:05]}  Bf5 {[%clk 0:01:28]} 25. b3 {[%clk 0:00:00]}  Qxb3 {[%clk 0:01:26]} 0-1


[Site "https://www.chess.com"]

[Event "Titled Tuesday Blitz July 11 Late 2023"]
[White "FoxOnTheRun97"]
[Black "Blackwhite017"]
[WhiteElo "2528"]
[BlackElo "2009"]
[Result "1-0"]
[Round "1"]
[TimeControl "180+2"]
[Date "2023.07.11"]
[WhiteClock "0:00:31"]
[BlackClock "0:00:00"]
[Board "186"]

1. d4 {[%clk 0:03:00]}  d5 {[%clk 0:02:41]} 2. Nf3 {[%clk 0:02:57]}  c6 {[%clk 0:02:40]} 3. g3 {[%clk 0:02:53]}  g6 {[%clk 0:02:39]} 4. Bg2 {[%clk 0:02:52]}  Bg7 {[%clk 0:02:34]} 5. O-O {[%clk 0:02:52]}  Nf6 {[%clk 0:02:30]} 6. Bf4 {[%clk 0:02:49]}  Bg4 {[%clk 0:02:27]} 7. Ne5 {[%clk 0:02:48]}  Nbd7 {[%clk 0:02:24]} 8. Nxg4 {[%clk 0:02:41]}  Nxg4 {[%clk 0:02:25]} 9. h3 {[%clk 0:02:38]}  Ngf6 {[%clk 0:02:24]} 10. c3 {[%clk 0:02:37]}  O-O {[%clk 0:02:17]} 11. Nd2 {[%clk 0:02:31]}  Re8 {[%clk 0:02:13]} 12. Nf3 {[%clk 0:02:30]}  e6 {[%clk 0:02:06]} 13. Ne5 {[%clk 0:02:29]}  Nxe5 {[%clk 0:02:06]} 14. Bxe5 {[%clk 0:02:30]}  Nd7 {[%clk 0:02:04]} 15. Bxg7 {[%clk 0:02:29]}  Kxg7 {[%clk 0:02:05]} 16. e4 {[%clk 0:02:29]}  Rc8 {[%clk 0:02:00]} 17. exd5 {[%clk 0:02:25]}  cxd5 {[%clk 0:01:50]} 18. Re1 {[%clk 0:02:18]}  b5 {[%clk 0:01:49]} 19. Qb3 {[%clk 0:02:09]}  Qb6 {[%clk 0:01:42]} 20. Re3 {[%clk 0:02:05]}  Rc7 {[%clk 0:01:13]} 21. Bxd5 {[%clk 0:02:01]}  Rec8 {[%clk 0:01:09]} 22. Bg2 {[%clk 0:01:57]}  a5 {[%clk 0:01:03]} 23. Rae1 {[%clk 0:01:40]}  b4 {[%clk 0:00:59]} 24. cxb4 {[%clk 0:01:36]}  Qxd4 {[%clk 0:00:54]} 25. bxa5 {[%clk 0:01:34]}  Rc2 {[%clk 0:00:50]} 26. Qd3 {[%clk 0:01:16]}  Qxb2 {[%clk 0:00:32]} 27. Qxd7 {[%clk 0:01:05]}  Rxf2 {[%clk 0:00:31]} 28. Bf1 {[%clk 0:01:06]}  Rcc2 {[%clk 0:00:31]} 29. R3e2 {[%clk 0:00:59]}  Rcxe2 {[%clk 0:00:18]} 30. Rxe2 {[%clk 0:00:57]}  Rxe2 {[%clk 0:00:17]} 31. Bxe2 {[%clk 0:00:56]}  Qxe2 {[%clk 0:00:18]} 32. Qd4+ {[%clk 0:00:56]}  e5 {[%clk 0:00:17]} 33. Qc3 {[%clk 0:00:52]}  f6 {[%clk 0:00:11]} 34. a3 {[%clk 0:00:50]}  Qd1+ {[%clk 0:00:09]} 35. Kf2 {[%clk 0:00:49]}  Qa4 {[%clk 0:00:07]} 36. Qb4 {[%clk 0:00:38]}  Qc2+ {[%clk 0:00:07]} 37. Ke3 {[%clk 0:00:38]}  Qc1+ {[%clk 0:00:04]} 38. Kd3 {[%clk 0:00:33]}  Qd1+ {[%clk 0:00:00]} 39. Kc4 {[%clk 0:00:31]} 1-0


[Site "https://www.chess.com"]

[Event "Titled Tuesday Blitz July 11 Late 2023"]
[White "Michalczak, Thomas"]
[Black "Upper, John"]
[WhiteFideId "4622634"]
[BlackFideId "2606437"]
[WhiteElo "2527"]
[BlackElo "1981"]
[Result "1-0"]
[Round "1"]
[TimeControl "180+2"]
[Date "2023.07.11"]
[WhiteClock "0:00:23"]
[BlackClock "0:00:04"]
[Board "188"]

1. e4 {[%clk 0:03:00]}  c5 {[%clk 0:02:59]} 2. c3 {[%clk 0:02:59]}  e6 {[%clk 0:02:58]} 3. Nf3 {[%clk 0:02:58]}  d5 {[%clk 0:02:58]} 4. exd5 {[%clk 0:02:59]}  exd5 {[%clk 0:02:58]} 5. Bb5+ {[%clk 0:02:59]}  Nc6 {[%clk 0:02:56]} 6. Ne5 {[%clk 0:02:51]}  Qb6 {[%clk 0:02:48]} 7. Na3 {[%clk 0:02:42]}  Bd6 {[%clk 0:02:42]} 8. Qe2 {[%clk 0:02:37]}  Ne7 {[%clk 0:02:25]} 9. O-O {[%clk 0:01:45]}  O-O {[%clk 0:02:24]} 10. Nxc6 {[%clk 0:01:46]}  bxc6 {[%clk 0:02:14]} 11. Bd3 {[%clk 0:01:41]}  a5 {[%clk 0:02:00]} 12. Re1 {[%clk 0:01:34]}  Ba6 {[%clk 0:01:51]} 13. Bxa6 {[%clk 0:01:33]}  Qxa6 {[%clk 0:01:49]} 14. Qxa6 {[%clk 0:01:32]}  Rxa6 {[%clk 0:01:50]} 15. d3 {[%clk 0:01:31]}  Rb8 {[%clk 0:01:48]} 16. b3 {[%clk 0:01:29]}  a4 {[%clk 0:01:46]} 17. bxa4 {[%clk 0:01:27]}  Rxa4 {[%clk 0:01:46]} 18. Nc2 {[%clk 0:01:25]}  Ng6 {[%clk 0:01:36]} 19. g3 {[%clk 0:01:25]}  h6 {[%clk 0:01:33]} 20. f4 {[%clk 0:01:13]}  h5 {[%clk 0:01:26]} 21. h4 {[%clk 0:01:12]}  Ne7 {[%clk 0:01:12]} 22. Kf2 {[%clk 0:01:12]}  Nf5 {[%clk 0:01:12]} 23. Re2 {[%clk 0:01:10]}  g6 {[%clk 0:01:09]} 24. Ne3 {[%clk 0:01:03]}  Nxg3 {[%clk 0:00:56]} 25. Kxg3 {[%clk 0:01:00]}  Rxf4 {[%clk 0:00:54]} 26. Kh3 {[%clk 0:00:48]}  Rf3+ {[%clk 0:00:52]} 27. Kg2 {[%clk 0:00:48]}  Rf4 {[%clk 0:00:46]} 28. Nc2 {[%clk 0:00:39]}  Rxh4 {[%clk 0:00:45]} 29. Be3 {[%clk 0:00:34]}  Rh2+ {[%clk 0:00:38]} 30. Kf3 {[%clk 0:00:35]}  Rh3+ {[%clk 0:00:25]} 31. Kg2 {[%clk 0:00:35]}  Rg3+ {[%clk 0:00:24]} 32. Kf2 {[%clk 0:00:34]}  Rb2 {[%clk 0:00:20]} 33. Ne1 {[%clk 0:00:24]}  Rh3 {[%clk 0:00:04]} 34. Rxb2 {[%clk 0:00:23]} 1-0


[Site "https://www.chess.com"]

[Event "Titled Tuesday Blitz July 11 Late 2023"]
[White "Cruz Gomez, Miguel Angel"]
[Black "Poltorak, Sebastian"]
[WhiteFideId "5137160"]
[BlackFideId "1199498"]
[WhiteElo "1975"]
[BlackElo "2526"]
[Result "0-1"]
[Round "1"]
[TimeControl "180+2"]
[Date "2023.07.11"]
[WhiteClock "0:00:17"]
[BlackClock "0:01:06"]
[Board "189"]

1. Nf3 {[%clk 0:03:00]}  f6 {[%clk 0:02:55]} 2. d4 {[%clk 0:02:58]}  e6 {[%clk 0:02:54]} 3. c4 {[%clk 0:02:52]}  Bb4+ {[%clk 0:02:50]} 4. Bd2 {[%clk 0:02:52]}  Bxd2+ {[%clk 0:02:50]} 5. Nbxd2 {[%clk 0:02:52]}  Ne7 {[%clk 0:02:50]} 6. e3 {[%clk 0:02:51]}  O-O {[%clk 0:02:50]} 7. Bd3 {[%clk 0:02:51]}  c5 {[%clk 0:02:49]} 8. O-O {[%clk 0:02:50]}  cxd4 {[%clk 0:02:47]} 9. exd4 {[%clk 0:02:42]}  d5 {[%clk 0:02:46]} 10. c5 {[%clk 0:02:34]}  Nbc6 {[%clk 0:02:43]} 11. Re1 {[%clk 0:02:31]}  Qc7 {[%clk 0:02:37]} 12. a3 {[%clk 0:02:29]}  h6 {[%clk 0:02:20]} 13. Qe2 {[%clk 0:02:13]}  Bd7 {[%clk 0:02:15]} 14. Rac1 {[%clk 0:02:11]}  Rae8 {[%clk 0:02:14]} 15. Bb1 {[%clk 0:02:05]}  Nf5 {[%clk 0:02:08]} 16. Bxf5 {[%clk 0:02:00]}  exf5 {[%clk 0:02:09]} 17. Qd3 {[%clk 0:01:56]}  a6 {[%clk 0:02:03]} 18. Rxe8 {[%clk 0:01:53]}  Rxe8 {[%clk 0:02:02]} 19. Re1 {[%clk 0:01:54]}  Rxe1+ {[%clk 0:02:01]} 20. Nxe1 {[%clk 0:01:55]}  Qf4 {[%clk 0:02:01]} 21. Nef3 {[%clk 0:01:50]}  g5 {[%clk 0:01:50]} 22. Qe3 {[%clk 0:01:43]}  Qb8 {[%clk 0:01:41]} 23. b4 {[%clk 0:01:36]}  Qc8 {[%clk 0:01:40]} 24. Nb3 {[%clk 0:01:25]}  f4 {[%clk 0:01:38]} 25. Qe1 {[%clk 0:01:16]}  Bf5 {[%clk 0:01:35]} 26. Nfd2 {[%clk 0:01:15]}  Kf7 {[%clk 0:01:31]} 27. f3 {[%clk 0:00:41]}  Bd3 {[%clk 0:01:25]} 28. Kf2 {[%clk 0:00:42]}  Qf5 {[%clk 0:01:22]} 29. Kg1 {[%clk 0:00:24]}  Bc2 {[%clk 0:01:16]} 30. Kf2 {[%clk 0:00:20]}  Bxb3 {[%clk 0:01:13]} 31. Nxb3 {[%clk 0:00:21]}  Qd3 {[%clk 0:01:14]} 32. Na5 {[%clk 0:00:16]}  Qxd4+ {[%clk 0:01:06]} 33. Kf1 {[%clk 0:00:17]} 0-1


[Site "https://www.chess.com"]

[Event "Titled Tuesday Blitz July 11 Late 2023"]
[White "Haszon, David"]
[Black "gordonzyxu"]
[WhiteFideId "733610"]
[WhiteElo "2524"]
[BlackElo "1900"]
[Result "0-1"]
[Round "1"]
[TimeControl "180+2"]
[Date "2023.07.11"]
[WhiteClock "0:00:09"]
[BlackClock "0:00:13"]
[Board "190"]

1. d4 {[%clk 0:03:00]}  Nf6 {[%clk 0:02:57]} 2. Bf4 {[%clk 0:02:59]}  c5 {[%clk 0:02:56]} 3. e3 {[%clk 0:02:59]}  Qb6 {[%clk 0:02:55]} 4. Na3 {[%clk 0:02:47]}  Qxb2 {[%clk 0:02:39]} 5. Nb5 {[%clk 0:02:45]}  Qb4+ {[%clk 0:02:40]} 6. c3 {[%clk 0:02:43]}  Qa5 {[%clk 0:02:31]} 7. Nc7+ {[%clk 0:02:41]}  Kd8 {[%clk 0:02:29]} 8. Qb3 {[%clk 0:02:24]}  cxd4 {[%clk 0:02:17]} 9. exd4 {[%clk 0:02:23]}  Nc6 {[%clk 0:02:07]} 10. Nxa8 {[%clk 0:02:21]}  Nxd4 {[%clk 0:01:51]} 11. Bc7+ {[%clk 0:02:03]}  Qxc7 {[%clk 0:01:51]} 12. Nxc7 {[%clk 0:02:03]}  Nxb3 {[%clk 0:01:51]} 13. axb3 {[%clk 0:02:03]}  Kxc7 {[%clk 0:01:51]} 14. Rxa7 {[%clk 0:01:59]}  e6 {[%clk 0:01:36]} 15. Nf3 {[%clk 0:01:56]}  Ne4 {[%clk 0:01:32]} 16. Ra4 {[%clk 0:01:41]}  Nc5 {[%clk 0:01:21]} 17. Rf4 {[%clk 0:01:35]}  f5 {[%clk 0:01:10]} 18. b4 {[%clk 0:01:34]}  Ne4 {[%clk 0:01:09]} 19. Nd2 {[%clk 0:01:19]}  g5 {[%clk 0:00:51]} 20. Rf3 {[%clk 0:01:16]}  Nd6 {[%clk 0:00:46]} 21. Nc4 {[%clk 0:01:05]}  Bg7 {[%clk 0:00:34]} 22. Nxd6 {[%clk 0:01:04]}  Kxd6 {[%clk 0:00:35]} 23. Be2 {[%clk 0:01:01]}  b6 {[%clk 0:00:33]} 24. Rd3+ {[%clk 0:01:01]}  Kc7 {[%clk 0:00:34]} 25. O-O {[%clk 0:00:58]}  Ba6 {[%clk 0:00:33]} 26. Re3 {[%clk 0:00:52]}  Bb7 {[%clk 0:00:23]} 27. Rc1 {[%clk 0:00:41]}  Ra8 {[%clk 0:00:23]} 28. c4 {[%clk 0:00:33]}  Kd8 {[%clk 0:00:18]} 29. Bf3 {[%clk 0:00:33]}  Bxf3 {[%clk 0:00:16]} 30. Rxf3 {[%clk 0:00:34]}  Ra4 {[%clk 0:00:16]} 31. Rb3 {[%clk 0:00:33]}  Bf8 {[%clk 0:00:16]} 32. Rcb1 {[%clk 0:00:31]}  Kc7 {[%clk 0:00:15]} 33. g3 {[%clk 0:00:32]}  e5 {[%clk 0:00:15]} 34. Kg2 {[%clk 0:00:32]}  f4 {[%clk 0:00:15]} 35. g4 {[%clk 0:00:31]}  e4 {[%clk 0:00:13]} 36. h4 {[%clk 0:00:29]}  h6 {[%clk 0:00:13]} 37. h5 {[%clk 0:00:28]}  Kc6 {[%clk 0:00:12]} 38. Kf1 {[%clk 0:00:27]}  d5 {[%clk 0:00:12]} 39. cxd5+ {[%clk 0:00:27]}  Kxd5 {[%clk 0:00:13]} 40. b5 {[%clk 0:00:23]}  Rd4 {[%clk 0:00:12]} 41. Ke1 {[%clk 0:00:18]}  Bc5 {[%clk 0:00:12]} 42. R3b2 {[%clk 0:00:16]}  Rd3 {[%clk 0:00:12]} 43. Rd2 {[%clk 0:00:15]}  Rxd2 {[%clk 0:00:11]} 44. Kxd2 {[%clk 0:00:16]}  Bxf2 {[%clk 0:00:12]} 45. Ke2 {[%clk 0:00:16]}  Bc5 {[%clk 0:00:12]} 46. Rd1+ {[%clk 0:00:15]}  Bd4 {[%clk 0:00:12]} 47. Rc1 {[%clk 0:00:15]}  f3+ {[%clk 0:00:13]} 48. Kd2 {[%clk 0:00:15]}  Bc5 {[%clk 0:00:12]} 49. Kc3 {[%clk 0:00:10]}  e3 {[%clk 0:00:12]} 50. Kd3 {[%clk 0:00:11]}  e2 {[%clk 0:00:11]} 51. Ra1 {[%clk 0:00:09]}  Bb4 {[%clk 0:00:10]} 52. Ke3 {[%clk 0:00:06]}  e1=Q+ {[%clk 0:00:10]} 53. Rxe1 {[%clk 0:00:06]}  Bxe1 {[%clk 0:00:11]} 54. Kxf3 {[%clk 0:00:07]}  Bc3 {[%clk 0:00:11]} 55. Ke2 {[%clk 0:00:08]}  Kc5 {[%clk 0:00:11]} 56. Kd3 {[%clk 0:00:07]}  Be5 {[%clk 0:00:11]} 57. Ke4 {[%clk 0:00:08]}  Bf4 {[%clk 0:00:12]} 58. Kf5 {[%clk 0:00:08]}  Kxb5 {[%clk 0:00:12]} 59. Kg6 {[%clk 0:00:09]}  Kc4 {[%clk 0:00:12]} 60. Kxh6 {[%clk 0:00:10]}  b5 {[%clk 0:00:13]} 61. Kg6 {[%clk 0:00:10]}  b4 {[%clk 0:00:14]} 62. h6 {[%clk 0:00:10]}  b3 {[%clk 0:00:14]} 63. Kf5 {[%clk 0:00:11]}  Bd2 {[%clk 0:00:13]} 64. h7 {[%clk 0:00:11]}  Bc3 {[%clk 0:00:13]} 65. Kxg5 {[%clk 0:00:11]}  b2 {[%clk 0:00:14]} 66. Kh6 {[%clk 0:00:11]}  b1=Q {[%clk 0:00:14]} 67. g5 {[%clk 0:00:12]}  Qb6+ {[%clk 0:00:14]} 68. g6 {[%clk 0:00:12]}  Qf6 {[%clk 0:00:14]} 69. Kh5 {[%clk 0:00:09]}  Bd2 {[%clk 0:00:13]} 0-1


[Site "https://www.chess.com"]

[Event "Titled Tuesday Blitz July 11 Late 2023"]
[White "Filgueiras, Nathan Felipe"]
[Black "Kalogeris, Ioannis"]
[WhiteFideId "2188562"]
[BlackFideId "4239563"]
[WhiteElo "1897"]
[BlackElo "2523"]
[Result "0-1"]
[Round "1"]
[TimeControl "180+2"]
[Date "2023.07.11"]
[WhiteClock "0:00:15"]
[BlackClock "0:00:40"]
[Board "191"]

1. e4 {[%clk 0:02:57]}  e5 {[%clk 0:02:59]} 2. Nf3 {[%clk 0:02:56]}  Nc6 {[%clk 0:03:00]} 3. Bc4 {[%clk 0:02:41]}  Bc5 {[%clk 0:02:59]} 4. O-O {[%clk 0:02:42]}  Nf6 {[%clk 0:02:58]} 5. d4 {[%clk 0:02:42]}  Bxd4 {[%clk 0:02:57]} 6. Nxd4 {[%clk 0:02:41]}  Nxd4 {[%clk 0:02:58]} 7. Bg5 {[%clk 0:02:41]}  h6 {[%clk 0:02:51]} 8. Bh4 {[%clk 0:02:16]}  g5 {[%clk 0:02:51]} 9. f4 {[%clk 0:02:15]}  d6 {[%clk 0:02:41]} 10. fxg5 {[%clk 0:01:50]}  Bg4 {[%clk 0:01:36]} 11. Bxf7+ {[%clk 0:01:24]}  Kf8 {[%clk 0:01:33]} 12. Qd2 {[%clk 0:01:13]}  Nxe4 {[%clk 0:01:23]} 13. Bd5+ {[%clk 0:01:08]}  Nf3+ {[%clk 0:01:22]} 14. Rxf3+ {[%clk 0:01:08]}  Bxf3 {[%clk 0:01:22]} 15. Qe3 {[%clk 0:00:58]}  Bxg2 {[%clk 0:01:00]} 16. Kxg2 {[%clk 0:00:52]}  Nxg5 {[%clk 0:00:56]} 17. Nc3 {[%clk 0:00:44]}  c6 {[%clk 0:00:54]} 18. Rf1+ {[%clk 0:00:24]}  Ke8 {[%clk 0:00:55]} 19. Be6 {[%clk 0:00:20]}  Qe7 {[%clk 0:00:51]} 20. Bg4 {[%clk 0:00:20]}  Kd8 {[%clk 0:00:50]} 21. Ne4 {[%clk 0:00:19]}  Rg8 {[%clk 0:00:51]} 22. Rd1 {[%clk 0:00:18]}  d5 {[%clk 0:00:50]} 23. Ng3 {[%clk 0:00:17]}  Kc7 {[%clk 0:00:46]} 24. Nf5 {[%clk 0:00:17]}  Qf6 {[%clk 0:00:46]} 25. Ng3 {[%clk 0:00:16]}  Raf8 {[%clk 0:00:43]} 26. Rf1 {[%clk 0:00:16]}  Qd6 {[%clk 0:00:41]} 27. Rf3 {[%clk 0:00:16]}  Nxf3 {[%clk 0:00:40]} 28. Bxf3 {[%clk 0:00:16]}  e4 {[%clk 0:00:40]} 29. Bg4 {[%clk 0:00:15]}  Rxg4 {[%clk 0:00:40]} 0-1


[Site "https://www.chess.com"]